bitfinex/quotes_SOLUSD_20241031
["timestamp","ask_amount","ask_price","bid_price","bid_amount"]
[1730407767751,22.57082126,168.56,168.5,22.57082126]
[1730407767946,22.57082126,168.57,168.51,22.57082126]
[1730407768134,22.57082126,168.58,168.51,22.57082126]
[1730407768337,22.57082126,168.59,168.52,22.57082126]
[1730407768528,22.57082126,168.59,168.53,22.57082126]
[1730407769025,0.1,168.64,168.5,6.3413]
[1730407769026,22.57082126,168.61,168.55,22.57082126]
[1730407769226,22.57082126,168.6,168.54,22.57082126]
[1730407769745,22.57082126,168.6,168.55,20.7652]
[1730407770134,22.57082126,168.62,168.56,22.57082126]
[1730407770333,22.57082126,168.57,168.45,0.1]
[1730407770537,22.57082126,168.55,168.51,14.835]
[1730407770832,22.57082126,168.57,168.51,37.40582126]
[1730407771043,35.8579,168.65,168.51,14.835]
[1730407771246,22.57082126,168.58,168.52,22.57082126]
[1730407771850,22.57082126,168.53,168.46,37.41112126]
[1730407772042,22.57082126,168.53,168.47,22.57082126]
[1730407772243,22.57082126,168.54,168.48,22.57082126]
[1730407772427,22.57082126,168.55,168.49,22.57082126]
[1730407772626,22.57082126,168.54,168.48,22.57082126]
[1730407773536,22.57082126,168.55,168.49,22.57082126]
[1730407773943,22.57082126,168.57,168.51,22.57082126]
[1730407774145,22.57082126,168.59,168.53,22.57082126]
[1730407774342,22.57082126,168.6,168.54,22.57082126]
[1730407774748,22.57082126,168.6,168.54,28.50372126]
[1730407775143,22.57082126,168.59,168.54,20.7661]
[1730407775348,22.57082126,168.57,168.51,22.57082126]
[1730407775560,11.9687,168.63,168.51,0.12549]
[1730407775731,22.57082126,168.67,168.61,22.57082126]
[1730407775934,0.1,168.73,168.56,44.027864]
[1730407776129,0.1,168.69,168.53,0.1]
[1730407776347,0.1,168.68,168.51,0.1]
[1730407776546,0.1,168.68,168.52,0.12549]
[1730407776867,20.7517,168.66,168.53,20.7677]
[1730407777153,22.57082126,168.62,168.56,22.57082126]
[1730407777454,22.57082126,168.61,168.55,22.57082126]
[1730407777959,22.57082126,168.56,168.47,22.57082126]
[1730407778139,22.57082126,168.53,168.47,5.9357]
[1730407778465,22.57082126,168.51,168.45,28.50692126]
[1730407778666,22.57082126,168.53,168.47,22.57082126]
[1730407778831,0.1,168.58,168.46,22.57082126]
[1730407778832,22.57082126,168.52,168.46,22.57082126]
[1730407779037,22.57082126,168.53,168.47,22.57082126]
[1730407779241,22.57082126,168.56,168.5,22.57082126]
[1730407779759,22.57082126,168.58,168.52,22.57082126]
[1730407780173,22.57082126,168.59,168.53,22.57082126]
[1730407780333,22.57082126,168.6,168.54,22.57082126]
[1730407780538,22.57082126,168.6,168.44,16.3999]
[1730407780539,36.63873171,168.56,168.5,36.63873171]
[1730407780759,36.63873171,168.53,168.49,5.935]
[1730407781134,36.63873171,168.55,168.49,42.57373171]
[1730407781336,36.63873171,168.56,168.5,36.63873171]
[1730407781546,36.63873171,168.55,168.49,57.41133171]
[1730407781744,36.63873171,168.57,168.5,36.63873171]
[1730407781960,36.63873171,168.55,168.49,57.41133171]
[1730407782257,36.63873171,168.54,168.49,20.7726]
[1730407782563,36.63873171,168.55,168.49,57.41133171]
[1730407782741,42.57143171,168.56,168.5,36.63873171]
[1730407782942,5.9324,168.57,168.52,36.63873171]
[1730407783155,42.57063171,168.58,168.52,36.63873171]
[1730407783656,36.63873171,168.57,168.51,36.63873171]
[1730407784042,36.63873171,168.56,168.5,36.63873171]
[1730407784247,36.63873171,168.55,168.51,5.9343]
[1730407784645,36.63873171,168.59,168.52,36.63873171]
[1730407784874,36.63873171,168.58,168.51,57.40893171]
[1730407785054,36.63873171,168.59,168.52,36.63873171]
[1730407785362,36.63873171,168.61,168.55,36.63873171]
[1730407785569,36.63873171,168.64,168.58,36.63873171]
[1730407785940,36.63873171,168.62,168.56,36.63873171]
[1730407786140,42.56953171,168.62,168.56,42.57113171]
[1730407786762,36.63873171,168.61,168.56,5.9324]
[1730407787252,5.9311,168.6,168.55,20.7651]
[1730407787771,36.63873171,168.57,168.53,5.9335]
[1730407788060,36.63873171,168.58,168.53,5.9335]
[1730407788259,36.63873171,168.59,168.53,42.57223171]
[1730407788639,36.63873171,168.6,168.54,36.63873171]
[1730407789261,36.63873171,168.58,168.53,20.7676]
[1730407789756,36.63873171,168.56,168.53,14.8341]
[1730407789954,36.63873171,168.55,168.5,20.7714]
[1730407790267,36.63873171,168.56,168.5,57.41013171]
[1730407790844,5.9316,168.59,168.5,57.41013171]
[1730407790845,42.57183171,168.55,168.5,20.7714]
[1730407791161,36.63873171,168.54,168.5,20.7714]
[1730407791751,36.63873171,168.55,168.5,20.7714]
[1730407791945,36.63873171,168.56,168.5,57.41013171]
[1730407792152,36.63873171,168.56,168.51,36.63873171]
[1730407792967,36.63873171,168.56,168.52,5.934]
[1730407793471,36.63873171,168.55,168.52,5.934]
[1730407793842,36.63873171,168.56,168.52,5.934]
[1730407794546,36.63873171,168.56,168.51,20.7702]
[1730407795648,36.63873171,168.55,168.51,20.7702]
[1730407796045,36.63873171,168.52,168.48,14.8383]
[1730407796251,27.0808,168.58,168.45,36.63873171]
[1730407796252,36.63873171,168.5,168.45,36.63873171]
[1730407796563,36.63873171,168.49,168.45,20.777]
[1730407796752,36.63873171,168.47,168.44,6.1726]
[1730407796958,36.63873171,168.47,168.44,5.9367]
[1730407797156,5.935,168.49,168.38,36.63873171]
[1730407797157,36.63873171,168.45,168.38,36.63873171]
[1730407797371,36.63873171,168.41,168.35,57.42873171]
[1730407798367,36.63873171,168.4,168.35,20.79]
[1730407798868,36.63873171,168.42,168.36,36.63873171]
[1730407799062,36.63873171,168.44,168.39,36.63873171]
[1730407799273,36.63873171,168.42,168.36,36.88971171]
[1730407799650,36.63873171,168.41,168.36,36.76422171]
[1730407799850,36.63873171,168.44,168.38,36.63873171]
[1730407800049,36.63873171,168.43,168.37,36.76422171]
[1730407800468,36.63873171,168.46,168.4,36.63873171]
[1730407800848,36.63873171,168.44,168.39,0.12549]
[1730407801067,36.63873171,168.46,168.41,36.63873171]
[1730407801253,36.63873171,168.47,168.41,36.63873171]
[1730407801577,36.63873171,168.46,168.4,36.63873171]
[1730407801746,36.63873171,168.45,168.41,14.8447]
[1730407801946,36.63873171,168.46,168.41,14.8447]
[1730407802169,36.63873171,168.46,168.41,51.48343171]
[1730407802565,22.58271785,168.46,168.41,14.8447]
[1730407802769,22.58271785,168.47,168.41,37.42741785]
[1730407803271,22.58271785,168.46,168.41,37.42741785]
[1730407803468,22.58271785,168.44,168.41,14.8447]
[1730407803856,22.58271785,168.45,168.41,14.8447]
[1730407804052,22.58271785,168.46,168.41,37.42741785]
[1730407804866,22.58271785,168.48,168.42,22.58271785]
[1730407805076,22.58271785,168.49,168.44,22.58271785]
[1730407805252,22.58271785,168.52,168.47,22.83369785]
[1730407805453,15.3802,168.58,168.5,22.58271785]
[1730407805454,22.58271785,168.55,168.5,22.58271785]
[1730407805974,22.58271785,168.56,168.5,22.58271785]
[1730407806173,22.58271785,168.56,168.51,22.58271785]
[1730407806879,22.58271785,168.56,168.52,5.934]
[1730407807057,22.58271785,168.58,168.53,22.58271785]
[1730407807256,22.58271785,168.58,168.52,20.769]
[1730407807257,22.58271785,168.56,168.52,20.769]
[1730407807573,22.58271785,168.55,168.52,14.835]
[1730407807880,20.7579,168.61,168.52,14.835]
[1730407807881,22.58271785,168.57,168.52,37.41771785]
[1730407808178,22.58271785,168.56,168.52,14.835]
[1730407808355,22.58271785,168.55,168.52,14.835]
[1730407808675,22.58271785,168.53,168.49,5.935]
[1730407808878,22.58271785,168.53,168.49,14.8376]
[1730407809375,22.58271785,168.54,168.49,37.42031785]
[1730407809576,28.51561785,168.55,168.5,22.58271785]
[1730407809978,22.58271785,168.56,168.5,22.58271785]
[1730407810150,22.58271785,168.55,168.5,22.58271785]
[1730407810957,22.58271785,168.57,168.52,22.58271785]
[1730407811582,22.58271785,168.58,168.52,22.58271785]
[1730407811963,22.58271785,168.64,168.57,22.58271785]
[1730407812160,22.9427,168.73,168.56,22.58271785]
[1730407812161,22.58271785,168.61,168.56,22.58271785]
[1730407812565,22.58271785,168.61,168.55,29.14081785]
[1730407812881,22.58271785,168.61,168.56,28.51531785]
[1730407813077,28.51321785,168.62,168.56,28.51531785]
[1730407813283,28.51321785,168.62,168.57,22.58271785]
[1730407813476,22.58271785,168.63,168.58,22.58271785]
[1730407813679,22.58271785,168.64,168.58,22.58271785]
[1730407813868,22.58271785,168.67,168.62,22.58271785]
[1730407814064,22.58271785,168.69,168.63,22.58271785]
[1730407814264,22.58271785,168.69,168.64,22.58271785]
[1730407814588,22.58271785,168.72,168.66,22.58271785]
[1730407814882,22.58271785,168.7,168.66,5.929]
[1730407815295,22.58271785,168.72,168.66,28.51171785]
[1730407815477,22.58271785,168.71,168.66,43.33441785]
[1730407815694,22.58271785,168.71,168.6,22.68271785]
[1730407815695,22.58271785,168.67,168.59,22.58271785]
[1730407815986,22.58271785,168.64,168.58,22.58271785]
[1730407816363,22.58271785,168.65,168.59,22.58271785]
[1730407816568,22.58271785,168.64,168.58,22.58271785]
[1730407816899,22.58271785,168.65,168.59,22.58271785]
[1730407817265,22.58271785,168.66,168.6,22.58271785]
[1730407817977,22.58271785,168.67,168.61,22.58271785]
[1730407818469,28.51141785,168.67,168.61,28.51321785]
[1730407819083,22.58271785,168.69,168.63,22.58271785]
[1730407819781,22.58271785,168.69,168.64,22.58271785]
[1730407819985,22.58271785,168.71,168.65,22.58271785]
[1730407820196,22.58271785,168.71,168.61,50.4118]
[1730407820197,22.58271785,168.73,168.67,22.58271785]
[1730407820373,28.50861785,168.75,168.69,28.51041785]
[1730407820574,28.50841785,168.76,168.7,22.58271785]
[1730407820763,22.58271785,168.76,168.71,22.58271785]
[1730407821698,28.50801785,168.77,168.71,22.58271785]
[1730407822564,36.56390297,168.79,168.73,36.56390297]
[1730407822975,36.56390297,168.8,168.74,36.56390297]
[1730407823281,36.56390297,168.81,168.75,36.56390297]
[1730407823802,36.56390297,168.76,168.7,20.0]
[1730407824099,36.56390297,168.75,168.7,20.0]
[1730407824392,36.56390297,168.76,168.7,56.56390297]
[1730407824573,36.56390297,168.76,168.71,5.9273]
[1730407825275,36.56390297,168.77,168.71,57.30950297]
[1730407825472,36.56390297,168.81,168.76,36.56390297]
[1730407825778,36.56390297,168.83,168.77,36.56390297]
[1730407826098,5.9224,168.85,168.78,36.56390297]
[1730407826099,36.56390297,168.84,168.78,36.56390297]
[1730407826465,36.56390297,168.83,168.77,36.56390297]
[1730407826667,36.56390297,168.79,168.74,20.7418]
[1730407827083,36.56390297,168.77,168.72,5.9269]
[1730407827486,36.56390297,168.78,168.72,42.49080297]
[1730407827691,36.56390297,168.77,168.72,5.9269]
[1730407827883,36.56390297,168.76,168.71,14.8182]
[1730407828193,36.56390297,168.74,168.68,42.68610297]
[1730407828403,36.56390297,168.74,168.68,48.61420297]
[1730407828697,36.56390297,168.76,168.7,36.56390297]
[1730407828900,42.48950297,168.76,168.71,20.7456]
[1730407829273,42.48950297,168.76,168.7,36.56390297]
[1730407829580,36.56390297,168.74,168.69,42.49160297]
[1730407830189,42.48950297,168.76,168.7,36.56390297]
[1730407830698,36.56390297,168.77,168.71,36.56390297]
[1730407830873,42.48930297,168.77,168.71,36.56390297]
[1730407831489,36.56390297,168.76,168.7,42.49120297]
[1730407831693,42.48880297,168.78,168.72,36.56390297]
[1730407831871,36.56390297,168.79,168.74,36.56390297]
[1730407832079,36.56390297,168.81,168.75,36.56390297]
[1730407832389,65.64640929,169.0,168.76,36.56390297]
[1730407832390,36.56390297,168.82,168.76,36.56390297]
[1730407832692,36.56390297,168.83,168.77,36.56390297]
[1730407832896,36.56390297,168.83,168.78,42.48870297]
[1730407833074,36.56390297,168.85,168.79,36.56390297]
[1730407833476,36.56390297,168.84,168.79,36.56390297]
[1730407833777,36.56390297,168.88,168.82,36.56390297]
[1730407834099,36.56390297,168.87,168.82,36.56390297]
[1730407834280,36.56390297,168.88,168.82,36.56390297]
[1730407834879,42.48530297,168.88,168.82,42.48700297]
[1730407835195,36.56390297,168.87,168.82,42.48700297]
[1730407835400,36.56390297,168.87,168.82,5.9231]
[1730407836276,36.56390297,168.86,168.82,5.9231]
[1730407837175,36.56390297,168.86,168.81,14.8088]
[1730407837386,36.56390297,168.86,168.81,20.7326]
[1730407837885,42.48560297,168.87,168.81,57.29650297]
[1730407839000,36.56390297,168.82,168.74,6.1964]
[1730407839206,36.56390297,168.77,168.73,20.7425]
[1730407839503,36.56390297,168.79,168.73,57.30640297]
[1730407840000,36.56390297,168.8,168.74,36.56390297]
[1730407840401,36.56390297,168.81,168.75,57.30460297]
[1730407840589,36.56390297,168.77,168.72,40.744]
[1730407840783,36.56390297,168.77,168.72,20.744]
[1730407841486,36.56390297,168.78,168.72,57.30790297]
[1730407842101,36.56390297,168.77,168.72,57.30790297]
[1730407842397,36.56390297,168.76,168.72,20.744]
[1730407842603,36.56390297,168.77,168.72,20.744]
[1730407844103,36.56390297,168.74,168.71,5.9272]
[1730407844494,22.50757119,168.74,168.71,5.9272]
[1730407844883,22.50757119,168.75,168.71,5.9272]
[1730407845406,22.50757119,168.75,168.7,6.1964]
[1730407845698,22.50757119,168.75,168.7,26.9432]
[1730407846287,22.50757119,168.76,168.7,49.45077119]
[1730407847001,28.43307119,168.77,168.71,22.50757119]
[1730407847188,28.43307119,168.77,168.71,43.25287119]
[1730407849613,22.50757119,168.76,168.71,20.7453]
[1730407849811,22.50757119,168.75,168.71,20.7453]
[1730407850203,22.50757119,168.73,168.68,5.9283]
[1730407850511,22.50757119,168.73,168.68,20.7492]
[1730407850687,22.50757119,168.72,168.68,20.7492]
[1730407853786,5.9264,168.74,168.65,14.8235]
[1730407853787,22.50757119,168.69,168.65,14.8235]
[1730407853986,22.50757119,168.66,168.61,14.8263]
[1730407854326,22.50757119,168.66,168.61,20.7571]
[1730407855115,22.50757119,168.65,168.61,20.7571]
[1730407856291,22.50757119,168.66,168.61,43.26467119]
[1730407856496,22.50757119,168.68,168.63,22.50757119]
[1730407856692,22.50757119,168.7,168.64,22.50757119]
[1730407857710,22.50757119,168.69,168.65,20.7529]
[1730407857902,22.50757119,168.7,168.65,43.26047119]
[1730407859217,22.50757119,168.71,168.65,43.26047119]
[1730407859416,22.50757119,168.72,168.66,22.50757119]
[1730407859619,22.50757119,168.71,168.66,22.50757119]
[1730407860434,22.50757119,168.72,168.66,22.50757119]
[1730407860926,22.50757119,168.71,168.66,22.50757119]
[1730407861302,22.50757119,168.71,168.67,20.7505]
[1730407861625,22.50757119,168.7,168.67,20.7505]
[1730407862409,22.50757119,168.7,168.67,14.8218]
[1730407863320,22.50757119,168.72,168.67,14.8218]
[1730407863925,22.50757119,168.75,168.7,22.50757119]
[1730407864225,22.50757119,168.76,168.7,22.50757119]
[1730407864418,22.50757119,168.73,168.7,20.7463]
[1730407864618,22.50757119,168.72,168.68,5.928]
[1730407865508,22.50757119,168.73,168.68,5.928]
[1730407865809,22.50757119,168.75,168.69,22.50757119]
[1730407866010,22.50757119,168.74,168.68,43.25647119]
[1730407866524,22.50757119,168.75,168.69,22.50757119]
[1730407867626,22.50757119,168.76,168.7,22.50757119]
[1730407868104,22.50757119,168.74,168.69,22.50757119]
[1730407868303,22.50757119,168.7,168.64,6.1]
[1730407868524,22.50757119,168.67,168.64,20.754]
[1730407869026,22.50757119,168.68,168.64,20.754]
[1730407869230,22.50757119,168.66,168.64,14.8243]
[1730407869405,22.50757119,168.67,168.64,20.754]
[1730407869601,22.50757119,168.67,168.64,14.8243]
[1730407870121,22.50757119,168.68,168.64,14.8243]
[1730407870827,22.50757119,168.67,168.64,14.8243]
[1730407871208,22.50757119,168.66,168.61,20.7579]
[1730407871410,22.50757119,168.66,168.61,43.26547119]
[1730407872232,22.50757119,168.68,168.63,20.7554]
[1730407872730,22.50757119,168.69,168.63,43.26297119]
[1730407873104,22.50757119,168.68,168.63,20.7554]
[1730407874422,22.50757119,168.64,168.58,22.50757119]
[1730407874634,22.50757119,168.64,168.59,14.8281]
[1730407874923,22.50757119,168.67,168.61,22.50757119]
[1730407875339,22.50757119,168.66,168.6,22.50757119]
[1730407875820,22.50757119,168.67,168.61,22.50757119]
[1730407876010,22.50757119,168.67,168.62,20.7566]
[1730407876214,22.50757119,168.66,168.62,20.7566]
[1730407876913,22.50757119,168.66,168.62,14.8262]
[1730407878324,22.50757119,168.67,168.62,20.7566]
[1730407879220,22.50757119,168.68,168.62,43.26417119]
[1730407880438,22.50757119,168.68,168.62,37.33377119]
[1730407880731,22.50757119,168.67,168.62,14.8262]
[1730407881034,22.50757119,168.66,168.62,14.8262]
[1730407881407,22.50757119,168.66,168.62,20.7566]
[1730407881614,22.50757119,168.67,168.62,20.7566]
[1730407882342,22.50757119,168.68,168.62,43.26417119]
[1730407883440,22.50757119,168.68,168.63,22.50757119]
[1730407884139,22.50757119,168.67,168.62,14.8262]
[1730407885137,22.50757119,168.67,168.62,20.7566]
[1730407885438,5.9277,168.7,168.57,28.60307936]
[1730407885439,22.50757119,168.63,168.57,28.60307936]
[1730407885640,22.50757119,168.62,168.58,20.7609]
[1730407886540,14.08691139,168.62,168.57,14.08691139]
[1730407886733,14.08691139,168.62,168.56,14.08691139]
[1730407886919,14.08691139,168.62,168.57,20.0]
[1730407887330,14.08691139,168.63,168.57,14.08691139]
[1730407887743,14.08691139,168.63,168.58,20.7616]
[1730407888429,22.53919859,168.62,168.58,20.7616]
[1730407889446,22.53919859,168.59,168.58,14.8297]
[1730407889632,22.53919859,168.6,168.58,14.8297]
[1730407889828,22.53919859,168.6,168.55,50.4299]
[1730407890433,22.53919859,168.57,168.55,20.7652]
[1730407890636,22.53919859,168.59,168.55,20.7652]
[1730407891721,22.53919859,168.61,168.56,22.53919859]
[1730407891920,22.53919859,168.63,168.57,22.53919859]
[1730407892438,22.53919859,168.62,168.57,22.53919859]
[1730407892621,22.53919859,168.62,168.56,22.53919859]
[1730407892816,22.53919859,168.61,168.55,37.37149859]
[1730407893039,22.53919859,168.58,168.55,44.497]
[1730407893235,5.9303,168.63,168.55,44.497]
[1730407893236,22.53919859,168.57,168.55,14.8323]
[1730407893749,5.9303,168.63,168.55,14.8323]
[1730407893750,22.53919859,168.56,168.55,14.8323]
[1730407895046,22.53919859,168.56,168.51,37.37509859]
[1730407895364,22.53919859,168.55,168.51,14.8359]
[1730407896628,39.12549859,168.57,168.51,37.37509859]
[1730407897265,39.12549859,168.57,168.51,43.30939859]
[1730407897554,22.53919859,168.56,168.51,20.7702]
[1730407899345,22.53919859,168.55,168.51,20.7702]
[1730407899652,22.53919859,168.57,168.51,43.30939859]
[1730407900032,22.53919859,168.59,168.54,22.53919859]
[1730407900228,22.53919859,168.6,168.54,22.53919859]
[1730407900432,22.53919859,168.62,168.57,22.53919859]
[1730407900669,22.53919859,168.63,168.57,22.53919859]
[1730407900957,22.53919859,168.65,168.59,22.53919859]
[1730407901162,22.53919859,168.7,168.62,22.53919859]
[1730407901163,22.53919859,168.67,168.62,22.53919859]
[1730407901460,22.53919859,168.68,168.62,22.53919859]
[1730407901656,38.87309859,168.7,168.64,22.53919859]
[1730407901856,22.53919859,168.69,168.64,22.53919859]
[1730407902057,22.2615,168.7,168.64,22.53919859]
[1730407902058,22.53919859,168.7,168.64,22.53919859]
[1730407902367,22.53919859,168.69,168.64,22.53919859]
[1730407902544,22.53919859,168.69,168.65,5.9294]
[1730407902743,22.53919859,168.68,168.65,5.9294]
[1730407903355,22.53919859,168.66,168.6,37.36629859]
[1730407903558,22.53919859,168.65,168.61,20.0]
[1730407904443,22.53919859,168.65,168.61,40.7578]
[1730407904760,25.77919859,168.66,168.61,63.29699859]
[1730407905349,3.24,168.66,168.62,22.53919859]
[1730407905657,3.24,168.66,168.63,22.53919859]
[1730407906554,3.24,168.66,168.64,28.46889859]
[1730407906855,3.24,168.66,168.64,43.29329859]
[1730407907268,3.24,168.66,168.64,20.7541]
[1730407907868,3.24,168.66,168.64,43.29329859]
[1730407908246,3.24,168.66,168.64,20.7541]
[1730407908667,3.24,168.66,168.64,34.83115336]
[1730407909171,3.24,168.66,168.64,20.7541]
[1730407910155,3.24,168.66,168.64,14.07705336]
[1730407910972,3.24,168.66,168.65,14.07705336]
[1730407911147,20.00435336,168.71,168.65,14.07705336]
[1730407912174,14.07705336,168.7,168.66,5.929]
[1730407913475,14.07705336,168.7,168.65,14.8233]
[1730407913652,20.00435336,168.71,168.65,34.82975336]
[1730407914070,14.07705336,168.7,168.65,20.7527]
[1730407914451,6.0562,168.76,168.65,20.7527]
[1730407914452,14.07705336,168.69,168.65,14.8233]
[1730407914755,14.07705336,168.67,168.65,14.8233]
[1730407915071,14.07705336,168.66,168.62,20.7563]
[1730407915264,14.07705336,168.65,168.62,20.7563]
[1730407915652,14.07705336,168.66,168.62,20.7563]
[1730407916046,14.07705336,168.66,168.62,14.826]
[1730407916268,20.00625336,168.66,168.61,5.9308]
[1730407917575,20.00625336,168.66,168.61,20.7579]
[1730407918578,14.07705336,168.65,168.61,14.8271]
[1730407918757,20.00625336,168.66,168.61,14.8271]
[1730407919177,20.00625336,168.66,168.61,20.7579]
[1730407919392,20.00625336,168.66,168.61,34.83495336]
[1730407919682,14.07705336,168.66,168.61,20.7579]
[1730407920759,20.00625336,168.66,168.61,20.7579]
[1730407920955,14.07705336,168.68,168.62,14.07705336]
[1730407921156,14.07705336,168.67,168.62,14.07705336]
[1730407921356,14.07705336,168.67,168.61,34.83495336]
[1730407921578,14.07705336,168.67,168.62,14.07705336]
[1730407921757,14.07705336,168.68,168.62,14.07705336]
[1730407922081,5.9287,168.67,168.62,20.00735336]
[1730407922883,5.9287,168.67,168.62,5.9303]
[1730407923269,5.9287,168.67,168.62,20.7565]
[1730407923471,20.00575336,168.67,168.62,14.8262]
[1730407924288,20.00575336,168.67,168.6,5.9309]
[1730407924481,14.07705336,168.68,168.63,14.07705336]
[1730407925188,14.07705336,168.68,168.62,14.07705336]
[1730407925490,5.9287,168.67,168.62,20.00735336]
[1730407927089,5.9287,168.67,168.62,34.83355336]
[1730407928092,5.9287,168.67,168.63,14.07705336]
[1730407928394,5.9283,168.68,168.63,20.00705336]
[1730407929169,20.00535336,168.68,168.62,14.07705336]
[1730407929371,5.9283,168.68,168.63,14.07705336]
[1730407930282,5.928,168.69,168.66,14.07705336]
[1730407931202,30.41095336,168.74,168.68,14.07705336]
[1730407931378,14.07705336,168.72,168.66,14.07705336]
[1730407931580,14.07705336,168.71,168.65,14.07705336]
[1730407932089,14.07705336,168.68,168.63,20.7552]
[1730407932270,14.07705336,168.67,168.63,20.7552]
[1730407932475,14.07705336,168.66,168.63,14.8253]
[1730407932681,14.07705336,168.65,168.6,34.83555336]
[1730407932901,14.07705336,168.65,168.6,20.7585]
[1730407933396,14.07705336,168.7,168.57,6.008]
[1730407933397,14.07705336,168.61,168.57,14.8303]
[1730407933583,14.07705336,168.61,168.57,20.7625]
[1730407933788,14.07705336,168.62,168.57,34.83955336]
[1730407934287,14.07705336,168.63,168.57,34.83955336]
[1730407934486,5.9294,168.65,168.59,14.07705336]
[1730407934695,5.9294,168.65,168.6,14.07705336]
[1730407934895,14.07705336,168.68,168.62,14.07705336]
[1730407935076,14.07705336,168.67,168.62,14.07705336]
[1730407935275,14.07705336,168.67,168.61,14.07705336]
[1730407935897,14.07705336,168.67,168.62,14.07705336]
[1730407936078,5.9284,168.68,168.63,14.07705336]
[1730407936275,20.00545336,168.68,168.62,14.07705336]
[1730407937001,20.00545336,168.68,168.63,20.7554]
[1730407937792,20.00545336,168.68,168.63,34.83245336]
[1730407938610,20.00545336,168.68,168.62,14.07705336]
[1730407938791,14.07705336,168.65,168.59,34.83735336]
[1730407940294,14.07705336,168.62,168.56,34.84075336]
[1730407940493,14.07705336,168.61,168.56,20.7637]
[1730407940702,14.07705336,168.59,168.56,14.8311]
[1730407942186,29.90055336,168.57,168.48,14.07705336]
[1730407942398,14.07705336,168.51,168.47,14.8392]
[1730407942706,14.07705336,168.51,168.45,20.01345336]
[1730407943486,6.355,168.56,168.45,14.07705336]
[1730407943687,14.07705336,168.51,168.45,28.91815336]
[1730407943892,14.07705336,168.5,168.45,28.91815336]
[1730407944610,14.07705336,168.5,168.45,20.7775]
[1730407945307,14.07705336,168.5,168.45,34.85455336]
[1730407949284,14.07705336,168.49,168.45,14.8411]
[1730407950690,14.07705336,168.49,168.45,20.7775]
[1730407950910,14.07705336,168.5,168.45,34.85455336]
[1730407951286,14.07705336,168.5,168.45,20.7775]
[1730407951911,14.07705336,168.51,168.46,14.07705336]
[1730407952288,14.07705336,168.5,168.45,34.85455336]
[1730407953788,14.07705336,168.54,168.49,14.07705336]
[1730407953991,14.07705336,168.55,168.49,14.07705336]
[1730407954495,14.07705336,168.54,168.49,14.07705336]
[1730407955210,14.07705336,168.53,168.49,14.8371]
[1730407955423,14.07705336,168.51,168.49,14.8371]
[1730407956318,5.9327,168.56,168.47,5.9357]
[1730407956319,14.07705336,168.5,168.47,5.9357]
[1730407956697,14.07705336,168.51,168.47,5.9357]
[1730407957006,14.07705336,168.5,168.46,20.7764]
[1730407957930,14.07705336,168.51,168.46,20.7764]
[1730407958216,14.07705336,168.5,168.46,20.7764]
[1730407958418,20.7641,168.56,168.46,20.7764]
[1730407958419,14.07705336,168.51,168.46,20.7764]
[1730407958998,14.07705336,168.52,168.47,14.07705336]
[1730407959608,14.07705336,168.5,168.46,20.7764]
[1730407960010,14.07705336,168.51,168.46,34.85345336]
[1730407960216,14.07705336,168.51,168.46,14.07705336]
[1730407960405,14.07705336,168.53,168.47,14.07705336]
[1730407960803,14.07705336,168.53,168.48,14.07705336]
[1730407961118,14.07705336,168.54,168.49,14.07705336]
[1730407961613,14.07705336,168.56,168.49,20.0]
[1730407961826,14.07705336,168.57,168.52,14.07705336]
[1730407962220,14.07705336,168.57,168.53,5.9336]
[1730407962910,14.07705336,168.57,168.53,20.7677]
[1730407964123,14.07705336,168.58,168.53,20.7677]
[1730407964317,14.07705336,168.58,168.53,34.84475336]
[1730407964718,14.07705336,168.57,168.53,20.7677]
[1730407965113,14.07705336,168.58,168.53,34.84475336]
[1730407965513,14.07705336,168.59,168.54,14.07705336]
[1730407965930,14.07705336,168.59,168.53,28.91115336]
[1730407966831,14.07705336,168.58,168.53,34.84475336]
[1730407967437,14.07705336,168.58,168.53,20.7677]
[1730407969137,20.00855336,168.59,168.54,14.07705336]
[1730407969317,20.00855336,168.59,168.55,5.9329]
[1730407970132,14.07705336,168.58,168.55,5.9329]
[1730407970625,14.07705336,168.58,168.54,5.9333]
[1730407970828,14.07705336,168.59,168.54,34.84355336]
[1730407971033,14.07705336,168.6,168.55,14.07705336]
[1730407971837,14.07705336,168.59,168.54,34.84355336]
[1730407972216,14.07705336,168.6,168.54,34.84355336]
[1730407972618,14.07705336,168.6,168.5,6.3663]
[1730407972619,14.07705336,168.6,168.55,14.07705336]
[1730407973717,14.07705336,168.6,168.56,20.7641]
[1730407973927,29.29105336,168.61,168.56,34.84115336]
[1730407974126,14.07705336,168.61,168.56,34.84115336]
[1730407974435,14.07705336,168.62,168.57,14.07705336]
[1730407974634,14.07705336,168.63,168.58,14.07705336]